bitfinex/quotes_ETHUSD_20250725
["timestamp","ask_amount","ask_price","bid_price","bid_amount"]
[1753474728688,0.7699,3654.7,3653.8,0.02736876]
[1753474728689,0.7699,3654.7,3654.4,2.73639836]
[1753474728986,1.6918,3654.6,3654.3,2.73648014]
[1753474729202,0.7646,3654.5,3654.3,2.73648014]
[1753474729482,1.6918,3654.5,3654.3,2.73648014]
[1753474729638,0.7646,3654.5,3654.4,2.73642732]
[1753474730037,0.7646,3654.5,3653.7,5.23195158]
[1753474730038,0.7646,3654.5,3654.3,2.73648016]
[1753474730253,0.9158,3654.4,3654.3,2.73648016]
[1753474731377,0.9158,3654.4,3653.7,2.495]
[1753474731672,0.9158,3654.3,3654.2,2.73657708]
[1753474732797,0.9158,3654.3,3654.1,2.73662792]
[1753474732945,0.7646,3654.5,3654.1,2.73662792]
[1753474732946,0.9158,3654.2,3654.1,2.73662792]
[1753474735978,0.8014,3654.1,3653.7,0.29851]
[1753474736184,0.8014,3654.0,3653.6,2.73695639]
[1753474736482,0.9158,3653.9,3653.6,2.73695639]
[1753474736649,5.73652956,3654.3,3653.6,2.73695639]
[1753474736650,0.7655,3653.8,3653.6,2.73695639]
[1753474737052,0.9158,3653.7,3653.6,2.73695639]
[1753474737551,0.9158,3653.7,3653.6,2.87375639]
[1753474738582,0.7655,3653.8,3653.7,2.73695158]
[1753474738762,1.6813,3653.8,3653.7,2.73695158]
[1753474739162,0.7655,3654.2,3654.1,2.73661647]
[1753474739354,1.6813,3654.2,3654.1,2.73661647]
[1753474739554,1.6813,3654.2,3654.1,2.87341647]
[1753474740082,3.9158,3654.5,3654.4,2.73641318]
[1753474740597,1.6813,3654.5,3654.4,2.87321318]
[1753474741594,0.7655,3654.5,3654.4,2.87321318]
[1753474741778,0.7655,3654.9,3654.8,2.73612613]
[1753474741988,1.6813,3654.9,3654.8,2.73612613]
[1753474742187,1.6813,3654.9,3654.8,0.1368]
[1753474742765,1.6813,3654.9,3654.8,2.87292783]
[1753474746389,4.6813,3654.9,3654.8,2.87292783]
[1753474746568,5.496,3655.0,3654.9,2.73605296]
[1753474746766,3.002,3655.0,3654.9,2.73605296]
[1753474746964,0.002,3655.0,3654.9,2.73605296]
[1753474747202,0.002,3655.0,3654.9,3.86342156]
[1753474747365,0.002,3655.0,3654.9,4.27566104]
[1753474747564,0.8279,3655.9,3655.8,2.73537939]
[1753474747764,4.8588,3656.4,3656.3,2.73500533]
[1753474747965,0.9158,3656.4,3656.3,2.73500533]
[1753474748164,1.7437,3656.7,3656.6,2.73478094]
[1753474748424,4.2377,3656.7,3656.6,2.73478094]
[1753474748570,7.2377,3656.7,3656.6,2.87158094]
[1753474748766,0.8279,3656.7,3656.6,2.87158094]
[1753474748990,2.494,3656.8,3656.7,2.73470615]
[1753474749198,1.2996,3657.0,3656.9,2.73455659]
[1753474749435,0.8279,3657.0,3656.9,2.87135659]
[1753474749594,3.8279,3657.0,3656.9,2.87135659]
[1753474750164,0.4717,3657.2,3657.0,2.73448181]
[1753474750369,0.9158,3657.2,3657.1,2.87120704]
[1753474750795,0.8276,3657.3,3657.1,2.87120704]
[1753474751004,3.3206,3657.3,3657.1,0.1368]
[1753474751305,2.493,3657.3,3657.2,2.73429125]
[1753474751506,1.7434,3657.6,3657.1,0.6269]
[1753474751804,2.493,3657.4,3657.3,2.73425751]
[1753474752106,2.493,3657.4,3657.2,2.73431939]
[1753474752306,2.493,3657.4,3657.3,0.1368]
[1753474752507,6.4088,3657.4,3657.3,0.1368]
[1753474753329,5.493,3657.4,3657.3,0.1368]
[1753474753502,6.4088,3657.4,3657.3,0.1368]
[1753474760231,5.493,3657.4,3657.3,0.1368]
[1753474760731,6.4105,3657.4,3657.3,0.1368]
[1753474761439,6.4105,3657.4,3657.3,2.87105751]
[1753474763440,5.492,3657.4,3657.3,2.87105751]
[1753474763939,6.4095,3657.4,3657.3,2.87105751]
[1753474766322,5.492,3657.4,3657.3,2.87105751]
[1753474766741,3.0,3657.4,3657.3,2.87105751]
[1753474766949,5.492,3657.4,3657.3,3.36295751]
[1753474767109,3.0,3657.4,3657.3,3.36295751]
[1753474767442,5.492,3657.4,3657.3,3.36295751]
[1753474767841,2.492,3657.4,3657.3,3.36295751]
[1753474768376,0.002,3658.2,3657.3,3.36295751]
[1753474768377,1.7227,3658.2,3657.8,2.73388375]
[1753474768580,0.9175,3658.1,3657.6,0.4919]
[1753474768784,2.492,3658.1,3657.4,3.22608119]
[1753474768988,0.9175,3658.0,3657.7,2.7339473]
[1753474769187,0.9175,3658.0,3657.4,0.4919]
[1753474769483,0.9175,3658.0,3657.9,0.1368]
[1753474769872,0.8052,3658.2,3657.9,0.1368]
[1753474770049,0.8052,3658.2,3657.0,2.9839]
[1753474770050,0.9175,3658.0,3657.3,0.4919]
[1753474770262,3.0,3658.0,3657.6,2.73399081]
[1753474770461,0.9175,3657.9,3657.6,2.73399081]
[1753474770784,2.492,3657.8,3657.7,2.73395849]
[1753474771112,2.492,3657.8,3657.1,2.9395]
[1753474771113,0.8064,3657.7,3656.9,1.2522]
[1753474771284,0.8064,3657.7,3656.7,2.492]
[1753474771285,8.81745144,3657.6,3656.7,2.492]
[1753474771592,9.59345144,3657.6,3657.5,0.1368]
[1753474771771,11.46387033,3657.6,3657.5,0.1368]
[1753474771964,12.38137033,3657.6,3657.5,0.1368]
[1753474772191,5.73396937,3657.7,3657.5,0.1368]
[1753474772192,0.002,3657.9,3657.5,2.87090799]
[1753474772491,0.002,3657.9,3657.6,0.4919]
[1753474772791,2.492,3657.8,3657.7,2.73395849]
[1753474773010,2.493,3657.9,3657.8,2.87068375]
[1753474773150,2.493,3657.9,3657.8,2.73388375]
[1753474773354,2.493,3657.9,3657.8,3.22578375]
[1753474774316,2.493,3657.9,3657.8,2.73388375]
[1753474776090,3.4105,3657.9,3657.8,2.73388375]
[1753474776392,3.4105,3657.9,3657.7,0.1368]
[1753474776554,2.493,3657.9,3657.7,0.1368]
[1753474776751,0.9175,3657.8,3657.7,0.1368]
[1753474777287,0.4656,3657.8,3657.7,0.1368]
[1753474777491,1.6917,3657.8,3657.7,0.1368]
[1753474778898,2.68355569,3657.8,3657.7,0.1368]
[1753474780384,3.0,3657.7,3657.0,2.73442179]
[1753474780574,1.7439,3657.6,3657.5,0.1368]
[1753474780766,6.96893324,3657.6,3657.5,0.1368]
[1753474780970,9.96893324,3657.6,3657.5,0.1368]
[1753474781284,9.96893324,3657.6,3656.5,0.7913]
[1753474781285,0.8264,3657.3,3657.0,0.1368]
[1753474781601,2.73440704,3657.1,3657.0,0.1368]
[1753474781787,2.491,3657.2,3657.0,0.1368]
[1753474781788,5.22535829,3657.2,3657.0,0.1368]
[1753474781982,0.9175,3657.1,3657.0,0.1368]
[1753474782627,2.73466067,3656.8,3656.6,0.1368]
[1753474782774,2.491,3656.7,3656.6,0.1368]
[1753474783104,3.4085,3656.7,3656.6,0.1368]
[1753474783666,2.491,3656.7,3656.6,0.1368]
[1753474784474,2.491,3656.7,3656.6,3.36348094]
[1753474786203,2.491,3656.9,3656.8,2.73463137]
[1753474786405,3.0,3657.2,3657.1,2.73440704]
[1753474786606,2.491,3657.2,3656.9,2.73455659]
[1753474786775,2.491,3657.2,3657.1,0.1368]
[1753474787283,0.7977,3657.4,3657.1,0.1368]
[1753474787483,5.491,3657.3,3657.2,2.7342653]
[1753474787994,5.491,3657.3,3657.2,2.8710653]
[1753474788885,5.491,3657.3,3657.2,0.1368]
[1753474789277,6.4085,3657.3,3657.2,0.1368]
[1753474790893,5.491,3657.3,3657.2,2.87113227]
[1753474791500,2.491,3657.3,3657.2,2.87113227]
[1753474791701,0.4588,3657.6,3657.3,2.73421648]
[1753474792018,2.494,3657.9,3657.8,2.73388375]
[1753474792190,0.002,3657.9,3657.8,3.33458375]
[1753474796213,0.002,3657.9,3657.8,2.87068375]
[1753474796781,0.002,3657.9,3657.8,3.33458375]
[1753474798180,0.002,3657.9,3657.8,4.31666889]
[1753474799630,0.002,3657.9,3657.8,4.78836889]
[1753474799807,0.002,3657.9,3657.8,4.81570772]
[1753474800007,0.002,3657.9,3657.8,4.78836889]
[1753474800681,0.002,3657.9,3657.8,4.31666889]
[1753474801028,10.29046045,3657.9,3657.8,0.1368]
[1753474801224,10.52145144,3657.9,3657.2,2.73432112]
[1753474801514,6.64989055,3657.8,3657.0,2.73441842]
[1753474801681,6.64988853,3657.8,3657.0,2.73445917]
[1753474801880,3.0,3657.6,3657.1,2.73540394]
[1753474802110,0.916,3657.7,3657.1,0.001]
[1753474802309,3.19124092,3657.6,3657.1,0.001]
[1753474802513,0.8224,3657.3,3657.1,0.001]
[1753474803098,1.7384,3657.3,3657.1,0.001]
[1753474803912,4.47270567,3657.3,3657.1,0.001]
[1753474805508,1.7384,3657.3,3657.1,0.001]
[1753474806422,0.916,3657.3,3657.1,0.001]
[1753474808445,0.4588,3657.2,3657.1,0.001]
[1753474808629,0.916,3657.2,3657.1,0.001]
[1753474811231,0.916,3657.2,3657.1,0.1378]
[1753474812533,16.95836371,3657.2,3657.1,0.001]
[1753474812830,16.37568371,3657.2,3657.1,0.001]
[1753474815293,13.64135144,3657.2,3657.1,0.001]
[1753474815630,5.503,3657.2,3657.1,0.001]
[1753474815936,5.503,3657.2,3657.1,2.87220704]
[1753474815937,2.503,3657.2,3657.1,2.87220704]
[1753474816137,2.503,3657.2,3657.1,3.89678311]
[1753474817238,2.502,3657.4,3657.1,3.3360494]
[1753474817432,2.502,3657.4,3657.1,0.1378]
[1753474817725,5.502,3657.4,3657.3,0.1368]
[1753474818933,5.502,3657.4,3657.3,2.87105751]
[1753474819301,0.8058,3657.8,3657.3,2.87105751]
[1753474819302,0.002,3657.9,3657.6,2.733987]
[1753474819502,2.501,3657.8,3657.6,3.19791117]
[1753474819700,5.501,3657.8,3657.7,2.73395849]
[1753474819902,5.75714977,3657.8,3657.7,3.33465849]
[1753474820198,5.501,3657.8,3657.7,3.33465849]
[1753474820509,0.002,3657.9,3657.8,2.73388375]
[1753474821034,0.002,3657.9,3657.8,3.18478375]
[1753474825842,0.002,3657.9,3657.8,2.73388375]
[1753474826336,0.002,3657.9,3657.8,3.18478375]
[1753474827848,0.002,3657.9,3657.8,0.4509]
[1753474828013,0.002,3657.9,3657.7,0.74367023]
[1753474828213,0.002,3657.9,3657.8,2.73388375]
[1753474829637,0.002,3657.9,3657.8,3.18478375]
[1753474832453,0.002,3657.9,3657.8,2.73388375]
[1753474832651,0.002,3657.9,3657.8,4.05584225]
[1753474833016,0.002,3657.9,3657.8,4.83204225]
[1753474833213,0.002,3657.9,3657.8,7.32904225]
[1753474833426,0.002,3657.9,3657.8,7.77564225]
[1753474834720,0.002,3657.9,3657.8,7.32904225]
[1753474834921,0.002,3657.9,3657.8,2.496]
[1753474835126,0.9177,3657.9,3657.8,2.73388375]
[1753474835361,7.24315144,3657.9,3657.7,0.1368]
[1753474835546,0.9157,3657.8,3657.7,0.1368]
[1753474836263,7.2399,3657.8,3657.7,0.1368]
[1753474836566,0.7954,3657.5,3657.4,0.1368]
[1753474836852,7.12085144,3657.5,3657.4,0.1368]
[1753474837224,8.03655144,3657.5,3657.4,0.1368]
[1753474838249,1.7111,3657.5,3657.4,0.1368]
[1753474838430,15.91209076,3657.8,3657.5,2.73403575]
[1753474838431,0.7954,3657.8,3657.5,2.73403575]
[1753474838756,2.496,3657.7,3657.6,3.18493324]
[1753474839156,2.496,3657.7,3657.6,3.32173324]
[1753474839751,0.002,3657.9,3657.6,1.19328944]
[1753474839943,0.002,3657.9,3657.8,2.73388375]
[1753474840143,0.002,3657.9,3657.8,2.87068375]
[1753474840834,0.002,3657.9,3657.8,3.32158375]
[1753474841164,0.002,3657.9,3657.8,2.87068375]
[1753474841339,0.002,3657.9,3657.8,3.32158375]
[1753474841545,0.002,3657.9,3657.8,5.131939]
[1753474843828,0.002,3657.9,3657.8,5.15927783]
[1753474844170,0.002,3657.9,3657.8,7.65327783]
[1753474844334,0.002,3657.9,3657.8,7.625939]
[1753474851576,2.492,3659.1,3657.8,7.625939]
[1753474851577,0.7665,3659.2,3658.1,2.73365955]
[1753474851874,0.9396,3659.1,3658.7,2.7331504]
[1753474852052,0.7665,3659.2,3659.1,0.1368]
[1753474852255,0.9396,3659.0,3658.9,2.73306184]
[1753474852551,0.9396,3659.0,3658.8,2.73311692]
[1753474852854,0.7665,3659.2,3658.9,0.1368]
[1753474853268,0.7665,3659.2,3659.1,0.1368]
[1753474853961,1.7061,3659.2,3659.1,0.1368]
[1753474857688,1.7353,3659.5,3659.1,0.1368]
[1753474857867,3.4316,3659.5,3659.4,2.86948841]
[1753474858059,6.4316,3659.5,3659.4,2.86948841]
[1753474859586,2.492,3659.5,3659.4,2.86948841]
[1753474860621,0.7957,3660.0,3659.9,2.73231509]
[1753474860756,3.9396,3660.0,3659.9,2.73231509]
[1753474860968,0.9396,3660.0,3659.9,2.86911509]
[1753474861162,0.9396,3660.0,3659.9,0.1368]
[1753474862178,0.9396,3660.0,3659.9,2.86911509]
[1753474862563,0.9396,3660.0,3659.9,0.1368]
[1753474863366,0.9396,3660.0,3659.9,2.86911509]
[1753474863569,0.9396,3660.0,3659.9,0.1368]
[1753474863767,0.9396,3660.0,3659.9,2.86911509]
[1753474864502,0.9396,3660.0,3659.9,0.1368]
[1753474865570,0.9396,3660.0,3659.9,2.86911509]
[1753474865809,3.0,3660.1,3660.0,2.73224043]
[1753474865986,2.491,3660.1,3660.0,2.73224043]
[1753474866188,3.4306,3660.1,3659.9,0.1368]
[1753474866588,0.4448,3660.0,3659.9,2.86911509]
[1753474866780,0.9396,3660.0,3659.9,2.86911509]
[1753474869911,0.9396,3660.0,3659.9,0.1368]
[1753474871414,1.28266,3660.0,3659.9,0.1368]
[1753474871582,2.10966,3660.0,3659.9,0.1368]
[1753474871785,7.84190043,3660.0,3659.1,2.73284854]
[1753474871985,9.00888906,3659.8,3659.6,0.1368]
[1753474872325,2.491,3659.7,3659.6,0.1368]
[1753474872506,0.9396,3659.7,3659.6,0.1368]
[1753474873109,6.90230073,3660.0,3659.7,2.73240485]
[1753474873110,3.827,3660.0,3659.7,2.73240485]
[1753474873284,3.0,3660.0,3659.8,0.4968]
[1753474873484,3.0,3660.0,3659.9,2.86911509]
[1753474875705,0.8017,3660.4,3660.2,2.73202731]
[1753474875889,5.491,3660.3,3660.2,2.73202731]
[1753474876245,6.4306,3660.3,3660.2,2.73202731]
[1753474876524,6.4306,3660.3,3660.2,2.86882731]
[1753474878319,6.4306,3660.3,3660.2,0.1368]
[1753474878494,6.4306,3660.3,3660.2,2.86889114]
[1753474879012,5.491,3660.3,3660.2,2.86889114]
[1753474879218,2.491,3660.3,3660.2,2.86889114]
[1753474879519,3.4306,3660.3,3660.2,0.1368]
[1753474880401,8.76969072,3660.3,3660.2,0.1368]
[1753474880632,2.7321904,3660.1,3659.2,5.22378598]
[1753474880834,2.7321904,3660.1,3659.8,0.1368]
[1753474880835,2.73231509,3659.9,3659.8,0.1368]
[1753474881126,3.0,3659.8,3659.6,0.1368]
[1753474881418,2.491,3659.7,3659.6,0.1368]
[1753474881584,3.4073,3659.7,3659.6,0.1368]
[1753474881788,6.4073,3659.7,3659.6,0.1368]
[1753474881978,9.1397644,3659.7,3659.6,0.1368]
[1753474882178,6.4073,3659.7,3659.6,0.1368]
[1753474882616,9.1397644,3659.7,3659.6,0.1368]
[1753474883120,11.03413445,3659.7,3659.6,0.1368]
[1753474883305,3.49595324,3659.5,3659.2,0.1368]
[1753474883543,0.7633,3658.9,3658.4,2.73343246]
[1753474883711,7.03973293,3658.9,3658.8,0.1368]
[1753474884021,15.26379477,3658.9,3658.8,0.1368]
[1753474884219,2.7332586,3658.7,3658.5,0.1368]
[1753474884533,2.491,3658.6,3658.5,0.1368]
[1753474884722,3.4073,3658.6,3658.5,0.1368]
[1753474886029,6.14058595,3658.6,3658.5,0.1368]
[1753474886334,6.14058595,3658.6,3657.9,0.4835]
[1753474886335,5.73342206,3658.5,3658.0,0.1368]
[1753474886527,2.7335725,3658.3,3658.0,0.1368]
[1753474886689,2.491,3658.2,3658.0,0.1368]
[1753474887088,0.9163,3658.1,3658.0,0.1368]
[1753474888145,7.43475955,3658.1,3658.0,0.1368]
[1753474888304,5.04183,3658.1,3657.9,0.001]
[1753474888500,9.14103428,3658.0,3657.9,0.001]
[1753474888705,9.92583428,3658.0,3657.9,0.001]
[1753474889035,11.128995,3658.0,3657.9,0.001]
[1753474889238,41.678995,3658.0,3657.9,0.001]
[1753474889611,41.81794016,3658.0,3657.9,0.001]
[1753474890212,11.81794016,3658.0,3657.9,0.001]
[1753474890433,41.81794016,3658.0,3657.9,0.001]
[1753474891342,39.32694016,3658.0,3657.9,0.001]
[1753474891519,41.81894016,3658.0,3657.9,0.001]
[1753474894244,39.32694016,3658.0,3657.9,0.001]
[1753474894545,41.81894016,3658.0,3657.9,0.001]
[1753474894714,11.81894016,3658.0,3657.9,0.001]
[1753474894908,38.77694016,3658.0,3657.9,0.001]
[1753474895135,41.26894016,3658.0,3657.9,0.001]
[1753474897529,11.129995,3658.0,3657.9,0.001]
[1753474897829,41.129995,3658.0,3657.9,0.001]
[1753474898006,40.213695,3658.0,3657.9,0.001]
[1753474898206,37.721695,3658.0,3657.9,0.001]
[1753474899942,5.492,3658.0,3657.9,0.4835]
[1753474900870,5.492,3658.0,3657.9,3.21730901]
[1753474901050,2.492,3658.0,3657.9,0.9174]
[1753474901230,2.492,3658.0,3657.9,1.6679]
[1753474901664,2.492,3658.0,3657.9,4.40170901]
[1753474901857,0.8108,3658.7,3658.1,2.73364986]
[1753474902060,5.492,3658.6,3658.2,3.21607087]
[1753474902263,5.492,3658.6,3658.3,0.4825]
[1753474902763,2.493,3658.5,3658.3,3.64990141]
[1753474902951,2.493,3658.5,3658.4,0.6193]
[1753474903146,2.493,3658.5,3658.4,3.35273538]
[1753474904063,2.492,3658.5,3658.4,3.35273538]
[1753474904273,7.06,3658.8,3658.5,0.7551]
[1753474904274,3.0,3658.8,3658.5,0.7551]
[1753474904487,2.492,3658.7,3658.6,0.9164]
[1753474904640,2.492,3658.7,3658.6,3.16718595]
[1753474904828,3.0,3659.1,3658.6,0.5707]
[1753474905169,2.492,3659.0,3658.7,2.7331915]
[1753474905371,2.493,3658.9,3658.7,2.7331915]
[1753474905678,2.493,3658.9,3658.8,0.4825]
[1753474905877,2.493,3658.9,3658.8,0.6193]
[1753474907973,2.493,3658.9,3658.8,3.35243654]
[1753474908974,2.493,3658.9,3658.8,0.6193]
[1753474909860,2.493,3658.9,3658.8,0.1368]
[1753474910061,2.493,3658.9,3658.8,0.6106]
[1753474910435,2.493,3658.9,3658.8,0.1368]
[1753474910660,3.75914,3658.9,3658.7,0.1368]
[1753474910866,3.4174,3658.9,3658.7,0.1368]
[1753474911088,2.73313654,3658.8,3658.2,0.7882]
[1753474911274,6.28345445,3658.5,3658.4,0.1368]
[1753474911572,2.492,3658.5,3658.4,0.1368]
[1753474911737,0.9244,3658.7,3658.4,0.1368]
[1753474911938,2.492,3658.6,3658.4,0.6106]
[1753474912138,2.492,3658.6,3658.4,3.3440338]
[1753474912547,2.492,3658.6,3658.4,0.6106]
[1753474912848,2.492,3658.6,3658.4,0.1368]
[1753474913043,0.4542,3658.6,3658.4,0.1368]
[1753474913284,3.4164,3658.5,3658.4,0.1368]
[1753474913981,2.9462,3658.5,3658.4,0.1368]
[1753474914285,2.492,3658.5,3658.4,0.1368]
[1753474914446,2.9462,3658.5,3658.4,0.1368]
[1753474914652,2.492,3658.5,3658.4,0.1368]
[1753474914951,2.492,3658.5,3658.4,3.34403538]
[1753474915150,2.492,3658.5,3658.4,0.6106]
[1753474915387,2.492,3658.5,3658.4,0.1368]
[1753474915751,2.492,3658.5,3658.4,2.87023538]
[1753474915948,2.492,3658.5,3658.4,3.34403538]
[1753474916780,2.492,3658.5,3658.4,0.6106]
[1753474916949,2.492,3658.5,3658.4,0.1368]
[1753474917645,2.7332969,3658.6,3658.4,0.1368]
[1753474917969,3.1368,3658.9,3658.4,0.1368]
[1753474918177,2.492,3658.8,3658.6,0.1368]
[1753474919772,2.492,3658.8,3658.6,0.9479]
[1753474919972,3.0,3659.2,3658.7,0.4738]
[1753474920170,0.9244,3659.3,3658.8,0.4738]
[1753474920375,0.9244,3659.3,3658.9,0.1368]
[1753474920578,2.492,3659.2,3658.9,0.1368]
[1753474920885,2.492,3659.1,3659.0,0.4738]
[1753474921386,0.1368,3659.4,3659.0,0.4738]
[1753474921550,5.492,3659.3,3659.0,0.4738]
[1753474921951,6.4164,3659.3,3658.9,0.1368]
[1753474922355,6.4164,3659.3,3658.9,0.6106]
[1753474923759,6.4164,3659.3,3658.9,0.1368]
[1753474923760,5.492,3659.3,3658.9,0.1368]
[1753474923966,5.492,3659.3,3659.0,0.4738]
[1753474924165,5.492,3659.3,3658.9,3.31594458]
[1753474924369,5.492,3659.3,3659.1,0.4738]
[1753474924698,6.4164,3659.3,3658.9,0.1368]
[1753474925000,5.492,3659.3,3659.0,0.4738]
[1753474925371,3.0,3659.3,3659.1,2.73286107]
[1753474925571,2.491,3659.2,3659.1,3.20666107]
[1753474925785,2.73229675,3660.0,3659.2,0.7856]
[1753474925990,3.0,3659.7,3659.5,0.1368]
[1753474926494,0.9244,3659.7,3659.5,0.1368]
[1753474927501,2.491,3659.8,3659.5,0.6106]
[1753474927662,2.491,3659.8,3659.6,0.4738]
[1753474927862,2.491,3659.8,3659.5,0.1368]
[1753474928272,2.491,3659.8,3659.5,2.86939701]
[1753474928686,2.491,3659.8,3659.5,0.1368]
[1753474928891,0.9244,3659.7,3659.5,0.1368]
[1753474929800,0.9244,3659.6,3659.5,0.1368]
[1753474930973,0.9244,3659.6,3658.9,0.7761]
[1753474931164,0.9244,3659.6,3658.7,2.73315259]
[1753474931165,6.28345445,3659.3,3658.7,2.73315259]
[1753474931366,2.491,3659.2,3659.0,0.1368]
[1753474931574,4.2232,3659.2,3658.4,0.7761]
[1753474931774,4.2232,3659.2,3658.9,0.1368]
[1753474931775,2.491,3659.1,3658.9,0.1368]
[1753474932371,2.491,3659.1,3658.9,0.6106]
[1753474932708,3.0,3659.2,3658.9,2.86984942]
[1753474933014,2.491,3659.3,3659.2,2.73278175]
[1753474933186,0.1368,3659.9,3659.3,2.73275925]
[1753474933369,2.491,3659.8,3659.4,0.4738]
[1753474933678,2.491,3659.8,3659.6,0.1368]
[1753474935303,3.6568644,3659.7,3659.0,0.7818]
[1753474935493,3.6568644,3659.7,3658.8,3.20692646]
[1753474935494,6.49843102,3659.5,3658.8,2.73309343]
[1753474935700,6.49843102,3659.5,3658.6,3.20706192]
[1753474935701,5.73280601,3659.3,3659.0,0.1368]
[1753474936016,12.01626046,3659.3,3658.8,0.1368]
[1753474936170,0.9244,3659.2,3658.8,0.1368]
[1753474936374,6.14831607,3659.1,3658.8,0.1368]
[1753474936571,0.9244,3659.0,3658.8,0.1368]
[1753474936809,5.5438278,3659.0,3658.8,0.1368]
[1753474937105,0.4542,3658.9,3658.6,0.1368]
[1753474937308,2.491,3658.8,3658.6,0.1368]
[1753474937515,2.491,3658.8,3658.6,0.6106]
[1753474937811,2.491,3658.8,3658.6,0.1368]
[1753474938025,0.9244,3658.7,3657.9,0.4748]
[1753474938205,3.49571124,3658.7,3658.1,2.73360282]
[1753474938391,0.9244,3658.6,3658.3,0.1368]
[1753474938578,2.491,3658.5,3658.3,0.1368]
[1753474938978,3.4154,3658.5,3658.3,0.1368]
[1753474939589,0.9244,3658.4,3658.3,0.1368]
[1753474939787,2.9612,3658.5,3658.3,0.1368]
[1753474939988,3.4154,3658.5,3658.3,0.1368]
[1753474940214,2.491,3658.5,3658.3,3.36409444]
[1753474940389,2.491,3658.4,3658.3,3.36409444]
[1753474941621,2.491,3658.4,3658.3,0.6306]
[1753474942313,2.491,3658.4,3658.3,0.1368]
[1753474943982,2.491,3658.4,3658.3,2.8703101]
[1753474944196,2.491,3658.4,3658.3,3.3641101]
[1753474944405,2.491,3658.4,3658.3,0.6306]
[1753474944611,2.491,3658.4,3658.3,3.3641101]
[1753474945210,2.491,3658.4,3658.3,4.09792637]
[1753474945412,1.7222,3659.3,3658.9,2.73304065]
[1753474945587,2.491,3659.2,3659.0,2.73298368]
[1753474945791,2.491,3659.2,3659.0,3.36358368]
[1753474946002,2.491,3659.2,3659.0,4.14778368]
[1753474946324,2.491,3659.1,3659.0,1.4148]
[1753474946524,2.491,3659.1,3659.0,0.921]
[1753474946710,2.491,3659.1,3659.0,0.1368]
[1753474947531,2.73348634,3658.4,3657.8,0.8306]
[1753474947686,3.8307,3658.5,3657.8,0.8306]
[1753474947687,2.501,3658.3,3657.8,0.001]
[1753474948026,3.4332,3658.3,3657.8,0.001]
[1753474948208,0.9322,3658.2,3657.8,2.73483935]
[1753474948652,0.9322,3658.2,3657.9,2.73479948]
[1753474948922,0.9322,3658.2,3657.9,0.001]
[1753474949125,2.501,3658.1,3658.0,3.2275336]
[1753474950106,2.501,3658.1,3658.0,0.4938]
[1753474950306,2.501,3658.1,3657.9,2.73478053]
[1753474951295,2.501,3658.1,3657.9,3.22858053]
[1753474951633,2.501,3658.1,3657.9,0.4948]
[1753474951997,2.501,3658.1,3657.9,3.22860886]
[1753474952751,2.501,3658.1,3658.0,2.73373428]
[1753474953053,2.501,3658.1,3658.0,3.22753428]
[1753474953617,3.9322,3658.5,3658.0,3.22753428]
[1753474953618,3.9322,3658.5,3658.1,2.73365955]
[1753474953816,0.8327,3658.8,3658.3,2.7335101]
[1753474953817,2.5,3658.4,3658.3,2.7335101]
[1753474954127,2.5,3658.5,3658.3,3.6672101]
[1753474954307,2.5,3658.5,3658.4,0.4938]
[1753474954502,2.5,3658.5,3658.4,3.67564639]
[1753474954915,0.002,3658.8,3658.5,2.73334168]
[1753474955115,2.5,3658.7,3658.5,2.73334168]
[1753474955437,2.5,3658.6,3658.5,3.22716066]
[1753474955640,2.5,3658.6,3658.1,0.8169]
[1753474955641,2.5,3658.6,3658.4,2.73339343]
[1753474955846,2.5,3658.6,3658.2,0.4938]
[1753474956047,2.5,3658.6,3657.8,0.8268]
[1753474956048,4.1824,3658.5,3657.8,0.8268]
[1753474956229,2.73357033,3658.3,3657.8,0.001]
[1753474956417,3.0,3658.1,3657.8,0.001]
[1753474956848,0.9322,3658.0,3657.8,0.001]
[1753474957019,3.0,3658.1,3657.8,0.001]
[1753474957232,3.0,3658.1,3657.8,2.73483306]
[1753474957413,3.4373,3658.1,3658.0,0.1368]
[1753474957613,3.9322,3658.1,3658.0,0.1368]
[1753474957843,6.66585955,3658.1,3657.8,0.001]
[1753474958147,0.9322,3658.0,3657.8,0.1378]
[1753474958721,3.4342,3658.0,3657.8,0.1378]
[1753474964858,0.9322,3658.0,3657.8,0.1378]
[1753474965021,3.4322,3658.0,3657.8,0.1378]
[1753474970961,10.04398769,3658.0,3657.8,0.1378]
[1753474971124,50.55727185,3658.0,3657.8,0.001]
[1753474971626,56.2646386,3658.0,3657.8,0.001]
[1753474972153,41.7646386,3658.0,3657.8,0.001]
[1753474973679,41.50878769,3658.0,3657.8,0.001]
[1753474973830,41.76450703,3658.0,3657.8,0.001]
[1753474974222,41.76450731,3658.0,3657.8,0.001]
[1753474976447,11.76450731,3658.0,3657.8,0.001]
[1753474976778,56.26450731,3658.0,3657.8,0.001]
[1753474977580,26.26450731,3658.0,3657.8,0.001]
[1753474977784,56.26450731,3658.0,3657.8,0.001]
[1753474978582,26.26450731,3658.0,3657.8,0.001]
[1753474978885,56.26450731,3658.0,3657.8,0.001]
[1753474979552,26.26450731,3658.0,3657.8,0.001]
[1753474979751,56.26450731,3658.0,3657.8,0.001]
[1753474981280,62.55071066,3658.0,3657.8,0.001]
[1753474981852,62.55059981,3658.0,3657.8,0.001]
[1753474982286,32.55059981,3658.0,3657.8,0.001]
[1753474983382,32.55058891,3658.0,3657.8,0.001]